fUST/lending_fUST_20250523
["ID","MTS","AMOUNT","RATE_DAILY","PERIOD"]
[362020627,1747937462628,-152.0,0.00022295,3]
[362020629,1747937462638,-152.0,0.00022295,3]
[362020631,1747937462648,-152.0,0.00022295,3]
[362020633,1747937462657,-240.0,0.00022295,3]
[362020635,1747937462667,-151.0,0.00022295,3]
[362020637,1747937462677,-151.0,0.00022295,3]
[362020639,1747937462686,-151.0,0.00022295,3]
[362020641,1747937462696,-151.0,0.00022295,3]
[362020644,1747937462706,-151.0,0.00022295,3]
[362020646,1747937462715,-151.0,0.00022295,3]
[362020648,1747937462725,-151.0,0.00022295,3]
[362020650,1747937462735,-218.07859057,0.00022295,3]
[362020652,1747937462744,-151.0,0.00022295,3]
[362020654,1747937462754,-151.0,0.00022295,3]
[362020656,1747937462763,-151.0,0.00022295,3]
[362020658,1747937462772,-151.0,0.00022295,3]
[362020660,1747937462782,-151.0,0.00022295,3]
[362020662,1747937462792,-151.0,0.00022295,3]
[362020664,1747937462802,-151.0,0.00022295,3]
[362020666,1747937462812,-151.0,0.00022295,3]
[362020668,1747937462821,-151.0,0.00022295,3]
[362020670,1747937462832,-151.0,0.00022295,3]
[362020672,1747937462841,-960.0,0.00022312,2]
[362020674,1747937462851,-711.797,0.00022312,2]
[362020676,1747937462861,-2234.0,0.00022312,2]
[362020678,1747937462871,-404.0,0.00022312,2]
[362020680,1747937462881,-2663.27909513,0.00022314,7]
[362020682,1747937462891,-151.0,0.00022314,7]
[362020684,1747937462900,-161.208878,0.00022314,7]
[362020687,1747937462910,-161.208878,0.00022314,7]
[362020689,1747937462920,-8361.66808408,0.00022365,2]
[362020691,1747937462931,-490.0,0.00022367,2]
[362020693,1747937462941,-755.29,0.00022367,2]
[362020695,1747937462951,-430.0,0.00022367,2]
[362020697,1747937462960,-430.0,0.00022367,2]
[362020699,1747937462971,-430.0,0.00022367,2]
[362020701,1747937462982,-473.86,0.00022367,2]
[362020703,1747937462992,-504.87967264,0.00022367,2]
[362020705,1747937463002,-374.10630352,0.00022367,2]
[362020707,1747937463011,-543.2,0.00022367,2]
[362020709,1747937463022,-727.06,0.00022367,2]
[362020711,1747937463032,-430.0,0.00022367,2]
[362020713,1747937463042,-430.0,0.00022367,2]
[362020715,1747937463052,-444.13,0.00022367,2]
[362020717,1747937463062,-459.74347429,0.00022367,2]
[362020719,1747937463072,-928.04,0.00022367,2]
[362020721,1747937463082,-430.0,0.00022367,2]
[362020723,1747937463093,-4381.58,0.00022367,2]
[362020725,1747937463102,-430.0,0.00022367,2]
[362020727,1747937463112,-953.82,0.00022367,2]
[362020729,1747937463122,-2814.75,0.00022367,2]
[362020731,1747937463132,-430.0,0.00022367,2]
[362020733,1747937463142,-1916.57,0.00022367,2]
[362020735,1747937463151,-2051.68,0.00022367,2]
[362020737,1747937463161,-1029.01,0.00022367,2]
[362020739,1747937463171,-430.0,0.00022367,2]
[362020741,1747937463180,-1345.46,0.00022367,2]
[362020743,1747937463191,-854.7,0.00022367,2]
[362020745,1747937463201,-1268.89,0.00022367,2]
[362020747,1747937463211,-430.0,0.00022367,2]
[362020749,1747937463222,-1006.28,0.00022367,2]
[362020751,1747937463231,-430.0,0.00022367,2]
[362020754,1747937463242,-9816.64,0.00022367,2]
[362020756,1747937463252,-430.0,0.00022367,2]
[362020758,1747937463262,-430.0,0.00022367,2]
[362020760,1747937463273,-430.0,0.00022367,2]
[362020762,1747937463284,-1432.41,0.00022367,2]
[362020764,1747937463294,-944.38,0.00022367,2]
[362020766,1747937463304,-880.15,0.00022367,2]
[362020768,1747937463314,-430.0,0.00022367,2]
[362020770,1747937463324,-430.0,0.00022367,2]
[362020772,1747937463335,-430.0,0.00022367,2]
[362020774,1747937463344,-633.5,0.00022367,2]
[362020776,1747937463354,-430.0,0.00022367,2]
[362020778,1747937463365,-430.0,0.00022367,2]
[362020780,1747937463375,-430.0,0.00022367,2]
[362020782,1747937463386,-430.0,0.00022367,2]
[362020784,1747937463396,-430.0,0.00022367,2]
[362020786,1747937463406,-430.0,0.00022367,2]
[362020789,1747937463417,-760.18,0.00022367,2]
[362020791,1747937463428,-363.14,0.00022367,2]
[362020793,1747937463439,-1811.62,0.00022367,2]
[362020795,1747937463449,-1062.44,0.00022367,2]
[362020797,1747937463459,-1627.43,0.00022367,2]
[362020799,1747937463470,-679.42,0.00022367,2]
[362020801,1747937463481,-430.0,0.00022367,2]
[362020803,1747937463490,-2910.52,0.00022367,2]
[362020805,1747937463502,-430.0,0.00022367,2]
[362020807,1747937463512,-500.0,0.00022367,2]
[362020809,1747937463522,-430.0,0.00022367,2]
[362020812,1747937463533,-798.79,0.00022367,2]
[362020814,1747937463543,-997.02,0.00022367,2]
[362020816,1747937463553,-1202.01,0.00022367,2]
[362020818,1747937463563,-500.0,0.00022367,2]
[362020820,1747937463573,-2934.9,0.00022367,2]
[362020822,1747937463583,-3000.0,0.000224,2]
[362020824,1747937463593,-151.0,0.000224,7]
[362020826,1747937463602,-151.0,0.000224,9]
[362020828,1747937463612,-1099.238876,0.000224,7]
[362020830,1747937463621,-1099.238876,0.000224,7]
[362020832,1747937463630,-428.344849,0.000224,7]
[362020834,1747937463640,-428.344849,0.000224,7]
[362020836,1747937463649,-375.834213,0.000224,7]
[362020838,1747937463658,-375.834213,0.000224,7]
[362020840,1747937463669,-2660.369704,0.000224,2]
[362020842,1747937463679,-2660.369704,0.000224,2]
[362020844,1747937463688,-151.0,0.000224,7]
[362020846,1747937463698,-322.506226,0.000224,30]
[362020848,1747937463708,-3000.0,0.0002241,2]
[362020850,1747937463718,-167.7,0.00022418,2]
[362020852,1747937463727,-447.56,0.00022418,2]
[362020854,1747937463737,-793.08,0.00022418,2]
[362020856,1747937463750,-870.97,0.00022418,2]
[362020858,1747937463759,-754.99,0.00022418,2]
[362020860,1747937463769,-2636.85,0.00022418,2]
[362020862,1747937463779,-4193.45,0.00022418,2]
[362020864,1747937463790,-635.81,0.00022418,2]
[362020866,1747937463801,-8839.91,0.00022418,2]
[362020868,1747937463811,-3000.0,0.0002242,2]
[362020871,1747937463823,-3000.0,0.0002243,2]
[362020873,1747937463832,-166.491313,0.00022433,7]
[362020875,1747937463843,-166.491313,0.00022433,7]
[362020877,1747937463853,-3000.0,0.0002244,2]
[362020878,1747937463863,-151.0,0.0002244,7]
[362020881,1747937463875,-1124.529407,0.0002244,7]
[362020897,1747937464029,-1124.529413,0.0002244,7]
[362020899,1747937464040,-215.0738,0.00022449,2]
[362020901,1747937464052,-151.0,0.00022449,2]
[362020903,1747937464063,-3000.0,0.0002245,2]
[362020905,1747937464073,-151.0,0.00022457,7]
[362020907,1747937464083,-151.0,0.00022457,7]
[362020909,1747937464093,-151.0,0.00022457,7]
[362020911,1747937464103,-151.0,0.00022457,7]
[362020913,1747937464112,-151.0,0.00022457,7]
[362020915,1747937464122,-342.024035,0.00022457,7]
[362020917,1747937464131,-342.024035,0.00022457,7]
[362020920,1747937464141,-161.208878,0.00022457,7]
[362020922,1747937464151,-161.208878,0.00022457,7]
[362020924,1747937464161,-1099.238876,0.00022457,7]
[362020926,1747937464170,-1099.238876,0.00022457,7]
[362020928,1747937464180,-428.344849,0.00022457,7]
[362020930,1747937464189,-428.344849,0.00022457,7]
[362020932,1747937464200,-151.0,0.00022457,7]
[362020934,1747937464209,-151.0,0.00022457,7]
[362020936,1747937464219,-375.834213,0.00022457,7]
[362020938,1747937464229,-375.834213,0.00022457,7]
[362020940,1747937464239,-644.92123,0.00022457,7]
[362020942,1747937464248,-644.92123,0.00022457,7]
[362020944,1747937464259,-2660.369704,0.00022457,2]
[362020946,1747937464270,-2660.369704,0.00022457,2]
[362020948,1747937464279,-577.640368,0.00022457,7]
[362020950,1747937464289,-577.640368,0.00022457,7]
[362020952,1747937464298,-166.496534,0.00022457,7]
[362020954,1747937464308,-151.0,0.00022457,7]
[362020956,1747937464318,-166.496534,0.00022457,7]
[362020958,1747937464327,-157.756467,0.00022457,7]
[362020960,1747937464337,-157.756467,0.00022457,7]
[362020962,1747937464347,-992.337153,0.00022457,7]
[362020964,1747937464356,-992.337153,0.00022457,7]
[362020966,1747937464366,-2457.758837,0.00022457,7]
[362020968,1747937464376,-2457.758837,0.00022457,7]
[362020970,1747937464386,-151.0,0.00022457,7]
[362020972,1747937464396,-719.0,0.00022457,3]
[362020974,1747937464406,-166.0,0.00022457,3]
[362020976,1747937464416,-719.0,0.00022457,3]
[362020978,1747937464426,-166.0,0.00022457,3]
[362020980,1747937464436,-203.06109813,0.00022457,3]
[362020982,1747937464447,-166.0,0.00022457,3]
[362020984,1747937464457,-719.0,0.00022457,3]
[362020986,1747937464473,-166.0,0.00022457,3]
[362020988,1747937464483,-719.0,0.00022457,3]
[362020990,1747937464493,-166.0,0.00022457,3]
[362020992,1747937464503,-166.0,0.00022457,3]
[362020994,1747937464513,-719.0,0.00022457,3]
[362020996,1747937464524,-160.0,0.00022457,3]
[362020999,1747937464534,-166.0,0.00022457,3]
[362021001,1747937464544,-166.0,0.00022457,3]
[362021003,1747937464554,-160.0,0.00022457,3]
[362021005,1747937464565,-166.0,0.00022457,3]
[362021007,1747937464575,-719.0,0.00022457,3]
[362021009,1747937464584,-163.92424099,0.00022457,3]
[362021011,1747937464593,-166.0,0.00022457,3]
[362021013,1747937464603,-166.0,0.00022457,3]
[362021015,1747937464612,-719.0,0.00022457,3]
[362021016,1747937464621,-151.0,0.00022457,3]
[362021019,1747937464631,-166.0,0.00022457,3]
[362021021,1747937464641,-166.0,0.00022457,3]
[362021023,1747937464651,-719.0,0.00022457,3]
[362021025,1747937464660,-172.0,0.00022457,3]
[362021027,1747937464669,-151.0,0.00022457,3]
[362021029,1747937464680,-166.0,0.00022457,3]
[362021031,1747937464690,-151.0,0.00022457,3]
[362021033,1747937464700,-719.0,0.00022457,3]
[362021035,1747937464709,-154.83282982,0.00022457,3]
[362021037,1747937464718,-172.0,0.00022457,3]
[362021039,1747937464728,-719.0,0.00022457,3]
[362021041,1747937464738,-200.04589674,0.00022457,3]
[362021043,1747937464747,-719.0,0.00022457,3]
[362021045,1747937464757,-719.0,0.00022457,3]
[362021047,1747937464767,-719.0,0.00022457,3]
[362021049,1747937464776,-315.0,0.00022457,3]
[362021051,1747937464786,-315.0,0.00022457,3]
[362021053,1747937464796,-719.0,0.00022457,3]
[362021055,1747937464806,-719.0,0.00022457,3]
[362021057,1747937464815,-315.0,0.00022457,3]
[362021059,1747937464825,-719.0,0.00022457,3]
[362021061,1747937464836,-315.0,0.00022457,3]
[362021063,1747937464846,-719.0,0.00022457,3]
[362021065,1747937464857,-315.0,0.00022457,3]
[362021067,1747937464867,-315.0,0.00022457,3]
[362021069,1747937464877,-719.0,0.00022457,3]
[362021072,1747937464887,-315.0,0.00022457,3]
[362021074,1747937464898,-315.0,0.00022457,3]
[362021076,1747937464909,-719.0,0.00022457,3]
[362021078,1747937464919,-315.0,0.00022457,3]
[362021080,1747937464928,-719.0,0.00022457,3]
[362021082,1747937464938,-719.0,0.00022457,3]
[362021084,1747937464948,-719.0,0.00022457,3]
[362021086,1747937464957,-719.0,0.00022457,3]
[362021088,1747937464967,-719.0,0.00022457,3]
[362021090,1747937464981,-719.0,0.00022457,3]
[362021092,1747937464991,-719.0,0.00022457,3]
[362021094,1747937465002,-719.0,0.00022457,3]
[362021096,1747937465012,-719.0,0.00022457,3]
[362021098,1747937465021,-719.0,0.00022457,3]
[362021100,1747937465031,-719.0,0.00022457,3]
[362021102,1747937465041,-719.0,0.00022457,3]
[362021104,1747937465051,-719.0,0.00022457,3]
[362021106,1747937465061,-719.0,0.00022457,3]
[362021108,1747937465070,-719.0,0.00022457,3]
[362021110,1747937465079,-719.0,0.00022457,3]
[362021112,1747937465089,-719.0,0.00022457,3]
[362021114,1747937465098,-719.0,0.00022457,3]
[362021116,1747937465109,-719.0,0.00022457,3]
[362021118,1747937465122,-719.0,0.00022457,3]
[362021120,1747937465131,-719.0,0.00022457,3]
[362021122,1747937465141,-719.0,0.00022457,3]
[362021124,1747937465150,-719.0,0.00022457,3]
[362021126,1747937465160,-719.0,0.00022457,3]
[362021128,1747937465170,-719.0,0.00022457,3]
[362021131,1747937465180,-719.0,0.00022457,3]
[362021133,1747937465189,-719.0,0.00022457,3]
[362021135,1747937465198,-719.0,0.00022457,3]
[362021137,1747937465208,-719.0,0.00022457,3]
[362021139,1747937465218,-719.0,0.00022457,3]
[362021141,1747937465227,-719.0,0.00022457,3]
[362021143,1747937465236,-719.0,0.00022457,3]
[362021145,1747937465246,-719.0,0.00022457,3]
[362021147,1747937465255,-719.0,0.00022457,3]
[362021149,1747937465265,-719.0,0.00022457,3]
[362021151,1747937465275,-208.33616536,0.00022457,3]
[362021153,1747937465284,-10081.8458144,0.00022457,3]
[362021155,1747937465293,-3000.0,0.0002246,2]
[362021157,1747937465303,-212.4501065,0.0002246,3]
[362021159,1747937465312,-351.04298934,0.0002246,3]
[362021161,1747937465322,-313.460734,0.00022464,7]
[362021163,1747937465331,-274.446248,0.00022464,7]
[362021165,1747937465340,-163.931405,0.00022464,7]
[362021167,1747937465350,-274.446248,0.00022464,7]
[362021169,1747937465359,-163.931405,0.00022464,7]
[362021171,1747937465369,-192.79876,0.00022465,7]
[362021173,1747937465378,-192.79876,0.00022465,7]
[362021175,1747937465387,-192.79876,0.00022465,7]
[362021177,1747937465396,-151.0,0.00022465,7]
[362021179,1747937465406,-151.0,0.00022465,7]
[362021181,1747937465416,-151.0,0.00022465,7]
[362021183,1747937465425,-151.0,0.00022465,7]
[362021185,1747937465435,-282.886262,0.00022465,7]
[362021187,1747937465444,-151.0,0.00022465,7]
[362021189,1747937465454,-151.0,0.00022465,7]
[362021191,1747937465463,-151.0,0.00022465,7]
[362021192,1747937465474,-177.936878,0.00022465,7]
[362021194,1747937465484,-151.0,0.00022465,7]
[362021196,1747937465493,-151.0,0.00022465,7]
[362021199,1747937465503,-151.0,0.00022465,7]
[362021201,1747937465512,-151.0,0.00022465,7]
[362021203,1747937465523,-151.0,0.00022465,7]
[362021205,1747937465532,-151.0,0.00022465,7]
[362021207,1747937465541,-151.0,0.00022465,7]
[362021209,1747937465551,-327.968916,0.00022465,7]
[362021211,1747937465560,-327.968916,0.00022465,7]
[362021213,1747937465570,-327.968916,0.00022465,7]
[362021215,1747937465579,-327.968916,0.00022465,7]
[362021217,1747937465588,-327.968916,0.00022465,7]
[362021219,1747937465598,-327.968916,0.00022465,7]
[362021221,1747937465607,-151.0,0.00022465,7]
[362021223,1747937465616,-183.865906,0.00022465,7]
[362021225,1747937465626,-151.0,0.00022465,7]
[362021227,1747937465636,-151.0,0.00022465,7]
[362021229,1747937465645,-152.661896,0.00022465,7]
[362021231,1747937465655,-224.107186,0.00022465,7]
[362021233,1747937465665,-224.107186,0.00022465,7]
[362021235,1747937465674,-224.107186,0.00022465,7]
[362021237,1747937465684,-224.107186,0.00022465,7]
[362021239,1747937465693,-224.107186,0.00022465,7]
[362021241,1747937465702,-224.107186,0.00022465,7]
[362021243,1747937465712,-935.62713,0.00022465,7]
[362021245,1747937465722,-935.62713,0.00022465,7]
[362021247,1747937465731,-935.62713,0.00022465,7]
[362021249,1747937465740,-307.735337,0.00022465,7]
[362021251,1747937465749,-307.735337,0.00022465,7]
[362021253,1747937465759,-307.735337,0.00022465,7]
[362021255,1747937465770,-307.735337,0.00022465,7]
[362021257,1747937465779,-307.735337,0.00022465,7]
[362021259,1747937465788,-307.735337,0.00022465,7]
[362021260,1747937465798,-313.460734,0.00022465,7]
[362021262,1747937465807,-313.460734,0.00022465,7]
[362021264,1747937465816,-274.446248,0.00022465,7]
[362021266,1747937465826,-274.446248,0.00022465,7]
[362021268,1747937465836,-163.931405,0.00022465,7]
[362021271,1747937465846,-163.931405,0.00022465,7]
[362021273,1747937465855,-274.446248,0.00022465,7]
[362021275,1747937465865,-274.446248,0.00022465,7]
[362021277,1747937465874,-163.931405,0.00022465,7]
[362021279,1747937465884,-163.931405,0.00022465,7]
[362021281,1747937465893,-351.638051,0.00022465,7]
[362021283,1747937465903,-351.638051,0.00022465,7]
[362021285,1747937465912,-351.638051,0.00022465,7]
[362021287,1747937465921,-351.638051,0.00022465,7]
[362021289,1747937465932,-351.638051,0.00022465,7]
[362021291,1747937465941,-351.638051,0.00022465,7]
[362021293,1747937465950,-166.491313,0.00022465,7]
[362021295,1747937465963,-166.491313,0.00022465,7]
[362021297,1747937465975,-166.491313,0.00022465,7]
[362021299,1747937465984,-166.491313,0.00022465,7]
[362021301,1747937465994,-151.0,0.00022465,2]
[362021303,1747937466003,-151.0,0.00022465,2]
[362021305,1747937466014,-151.0,0.00022465,2]
[362021307,1747937466023,-151.0,0.00022465,2]
[362021309,1747937466032,-151.0,0.00022465,7]
[362021311,1747937466042,-151.0,0.00022465,7]
[362021313,1747937466052,-847.748237,0.00022465,7]
[362021315,1747937466062,-847.748237,0.00022465,7]
[362021317,1747937466071,-282.804831,0.00022465,7]
[362021319,1747937466080,-847.748237,0.00022465,7]
[362021321,1747937466090,-847.748237,0.00022465,7]
[362021324,1747937466100,-175.64748,0.00022465,7]
[362021326,1747937466111,-175.64748,0.00022465,7]
[362021328,1747937466121,-175.64748,0.00022465,7]
[362021330,1747937466131,-175.64748,0.00022465,7]
[362021331,1747937466141,-350.149423,0.00022465,7]
[362021334,1747937466154,-350.149423,0.00022465,7]
[362021336,1747937466164,-350.149423,0.00022465,7]
[362021337,1747937466174,-350.149423,0.00022465,7]
[362021339,1747937466184,-151.0,0.00022465,7]
[362021341,1747937466194,-151.0,0.00022465,7]
[362021343,1747937466203,-151.0,0.00022465,7]
[362021345,1747937466213,-151.0,0.00022465,7]
[362021347,1747937466224,-151.0,0.00022465,7]
[362021349,1747937466234,-151.0,0.00022465,7]
[362021351,1747937466244,-151.0,0.00022465,7]
[362021354,1747937466254,-151.0,0.00022465,7]
[362021355,1747937466264,-151.0,0.00022465,7]
[362021358,1747937466274,-524.78,0.00022465,2]
[362021359,1747937466283,-151.0,0.00022465,7]
[362021361,1747937466293,-151.0,0.00022465,7]
[362021363,1747937466302,-151.0,0.00022465,7]
[362021365,1747937466312,-430.0,0.00022465,2]
[362021367,1747937466321,-430.0,0.00022465,2]
[362021369,1747937466331,-188.2314,0.00022465,7]
[362021371,1747937466341,-188.2314,0.00022465,7]
[362021373,1747937466350,-188.2314,0.00022465,7]
[362021375,1747937466361,-188.2314,0.00022465,7]
[362021377,1747937466370,-439.05,0.00022465,2]
[362021379,1747937466380,-151.0,0.00022465,7]
[362021381,1747937466391,-151.0,0.00022465,7]
[362021383,1747937466400,-151.0,0.00022465,7]
[362021385,1747937466410,-913.916522,0.00022465,7]
[362021387,1747937466421,-913.916522,0.00022465,7]
[362021389,1747937466431,-913.916522,0.00022465,7]
[362021391,1747937466440,-913.916522,0.00022465,7]
[362021393,1747937466450,-430.0,0.00022465,2]
[362021395,1747937466460,-470.0,0.00022465,2]
[362021411,1747937466604,-1000.0,0.00022465,2]
[362021413,1747937466615,-151.0,0.00022465,7]
[362021415,1747937466625,-151.0,0.00022465,7]
[362021418,1747937466635,-430.0,0.00022465,2]
[362021420,1747937466646,-430.0,0.00022465,2]
[362021421,1747937466655,-430.0,0.00022465,2]
[362021423,1747937466664,-342.024035,0.00022465,7]
[362021425,1747937466674,-342.024035,0.00022465,7]
[362021427,1747937466683,-342.024035,0.00022465,7]
[362021429,1747937466693,-342.024035,0.00022465,7]
[362021431,1747937466702,-342.024035,0.00022465,7]
[362021433,1747937466712,-420.0,0.00022465,2]
[362021435,1747937466721,-342.024026,0.00022465,7]
[362021437,1747937466731,-538.82,0.00022465,2]
[362021439,1747937466741,-161.208878,0.00022465,7]
[362021441,1747937466751,-161.208878,0.00022465,7]
[362021443,1747937466760,-161.208878,0.00022465,7]
[362021445,1747937466770,-161.208886,0.00022465,7]
[362021447,1747937466780,-510.0,0.00022465,2]
[362021449,1747937466789,-490.0,0.00022465,2]
[362021451,1747937466799,-1099.238876,0.00022465,7]
[362021454,1747937466809,-1099.238876,0.00022465,7]
[362021455,1747937466818,-1099.238876,0.00022465,7]
[362021457,1747937466829,-1099.238874,0.00022465,7]
[362021459,1747937466840,-430.0,0.00022465,2]
[362021461,1747937466850,-430.0,0.00022465,2]
[362021463,1747937466860,-430.0,0.00022465,2]
[362021465,1747937466870,-430.0,0.00022465,2]
[362021467,1747937466880,-430.0,0.00022465,2]
[362021469,1747937466889,-430.0,0.00022465,2]
[362021471,1747937466899,-428.344849,0.00022465,7]
[362021473,1747937466909,-428.344849,0.00022465,7]
[362021475,1747937466918,-530.0,0.00022465,2]
[362021477,1747937466928,-428.344849,0.00022465,7]
[362021479,1747937466937,-428.344843,0.00022465,7]
[362021481,1747937466947,-1218.95,0.00022465,2]
[362021483,1747937466957,-274.82957489,0.00022465,2]
[362021485,1747937466966,-430.0,0.00022465,2]
[362021487,1747937466979,-490.0,0.00022465,2]
[362021489,1747937466988,-430.0,0.00022465,2]
[362021491,1747937466998,-151.0,0.00022465,7]
[362021493,1747937467007,-430.0,0.00022465,2]
[362021495,1747937467017,-490.0,0.00022465,2]
[362021497,1747937467026,-151.0,0.00022465,7]
[362021499,1747937467035,-375.834213,0.00022465,7]
[362021501,1747937467047,-375.834213,0.00022465,7]
[362021503,1747937467057,-430.0,0.00022465,2]
[362021505,1747937467066,-214.63467896,0.00022465,2]
[362021507,1747937467076,-375.834213,0.00022465,7]
[362021509,1747937467085,-375.834221,0.00022465,7]
[362021511,1747937467094,-490.0,0.00022465,2]
[362021513,1747937467104,-430.0,0.00022465,2]
[362021514,1747937467113,-644.92123,0.00022465,7]
[362021517,1747937467123,-580.09,0.00022465,2]
[362021518,1747937467133,-430.0,0.00022465,2]
[362021520,1747937467143,-644.921229,0.00022465,7]
[362021522,1747937467153,-430.0,0.00022465,2]
[362021524,1747937467162,-430.0,0.00022465,2]
[362021526,1747937467171,-430.0,0.00022465,2]
[362021528,1747937467181,-430.0,0.00022465,2]
[362021530,1747937467190,-430.0,0.00022465,2]
[362021532,1747937467199,-430.0,0.00022465,2]
[362021534,1747937467209,-388.5073189,0.00022465,2]
[362021536,1747937467218,-430.0,0.00022465,2]
[362021538,1747937467228,-430.0,0.00022465,2]
[362021540,1747937467238,-430.0,0.00022465,2]
[362021542,1747937467247,-430.0,0.00022465,2]
[362021544,1747937467258,-2660.369704,0.00022465,2]
[362021546,1747937467268,-430.0,0.00022465,2]
[362021549,1747937467279,-2660.369704,0.00022465,2]
[362021551,1747937467290,-450.49,0.00022465,2]
[362021553,1747937467299,-2660.369704,0.00022465,2]
[362021555,1747937467310,-470.0,0.00022465,2]
[362021556,1747937467319,-2660.36970181,0.00022465,2]
[362021558,1747937467328,-430.0,0.00022465,2]
[362021560,1747937467338,-430.0,0.00022465,2]
[362021562,1747937467347,-311.57254614,0.00022465,2]
[362021564,1747937467357,-316.09857775,0.00022465,2]
[362021566,1747937467366,-1179.96,0.00022465,2]
[362021568,1747937467375,-430.0,0.00022465,2]
[362021570,1747937467385,-430.0,0.00022465,2]
[362021572,1747937467395,-577.640368,0.00022465,7]
[362021574,1747937467404,-430.0,0.00022465,2]
[362021576,1747937467414,-410.0,0.00022465,2]
[362021578,1747937467423,-577.640361,0.00022465,7]
[362021580,1747937467433,-490.0,0.00022465,2]
[362021582,1747937467442,-430.0,0.00022465,2]
[362021584,1747937467452,-430.0,0.00022465,2]
[362021586,1747937467462,-430.0,0.00022465,2]
[362021588,1747937467474,-430.0,0.00022465,2]
[362021590,1747937467483,-490.0,0.00022465,2]
[362021592,1747937467493,-430.0,0.00022465,2]
[362021594,1747937467503,-430.0,0.00022465,2]
[362021596,1747937467513,-412.60081372,0.00022465,2]
[362021598,1747937467522,-430.0,0.00022465,2]
[362021600,1747937467532,-430.0,0.00022465,2]
[362021602,1747937467541,-430.0,0.00022465,2]
[362021604,1747937467551,-166.496534,0.00022465,7]
[362021606,1747937467560,-151.0,0.00022465,7]
[362021608,1747937467570,-151.0,0.00022465,7]
[362021610,1747937467579,-510.0,0.00022465,2]
[362021612,1747937467588,-166.496542,0.00022465,7]
[362021614,1747937467598,-601.61,0.00022465,2]
[362021616,1747937467608,-157.756467,0.00022465,7]
[362021618,1747937467617,-430.0,0.00022465,2]
[362021620,1747937467626,-920.11,0.00022465,2]
[362021622,1747937467636,-157.756464,0.00022465,7]
[362021624,1747937467645,-430.0,0.00022465,2]
[362021626,1747937467655,-1361.15,0.00022465,2]
[362021628,1747937467664,-501.75737556,0.00022465,2]
[362021630,1747937467673,-430.0,0.00022465,2]
[362021632,1747937467683,-1240.4,0.00022465,2]
[362021634,1747937467692,-430.0,0.00022465,2]
[362021636,1747937467702,-430.0,0.00022465,2]
[362021638,1747937467711,-430.0,0.00022465,2]
[362021640,1747937467720,-430.0,0.00022465,2]
[362021641,1747937467730,-430.0,0.00022465,2]
[362021643,1747937467739,-782.33,0.00022465,2]
[362021645,1747937467750,-335.01684047,0.00022465,2]
[362021648,1747937467760,-980.99,0.00022465,2]
[362021649,1747937467770,-430.0,0.00022465,2]
[362021651,1747937467779,-430.0,0.00022465,2]
[362021653,1747937467789,-430.0,0.00022465,2]
[362021655,1747937467798,-341.65385455,0.00022465,2]
[362021657,1747937467808,-992.337153,0.00022465,7]
[362021659,1747937467818,-430.0,0.00022465,2]
[362021661,1747937467827,-432.19620842,0.00022465,2]